fUST/lending_fUST_20250626
["ID","MTS","AMOUNT","RATE_DAILY","PERIOD"]
[367649297,1750887047690,-460.0,0.00019178,2]
[367649299,1750887047699,-460.0,0.00019178,2]
[367649301,1750887047709,-460.0,0.00019178,2]
[367649303,1750887047718,-460.0,0.00019178,2]
[367649305,1750887047727,-460.0,0.00019178,2]
[367649307,1750887047736,-1417.27,0.00019178,2]
[367649309,1750887047746,-2011.13,0.00019178,2]
[367649311,1750887047755,-460.0,0.00019178,2]
[367649313,1750887047766,-460.0,0.00019178,2]
[367649315,1750887047777,-502.56,0.00019178,2]
[367649317,1750887047787,-1907.42,0.00019178,2]
[367649319,1750887047796,-460.0,0.00019178,2]
[367649321,1750887047806,-460.0,0.00019178,2]
[367649323,1750887047815,-460.0,0.00019178,2]
[367649325,1750887047824,-3397.07,0.00019178,2]
[367649327,1750887047834,-2780.5,0.00019178,2]
[367649329,1750887047843,-1826.13,0.00019178,2]
[367649331,1750887047853,-460.0,0.00019178,2]
[367649333,1750887047863,-2367.07,0.00019178,2]
[367649336,1750887047874,-460.0,0.00019178,2]
[367649338,1750887047883,-503.93,0.00019178,2]
[367649339,1750887047892,-460.0,0.00019178,2]
[367649342,1750887047902,-664.28,0.00019178,2]
[367649343,1750887047911,-460.0,0.00019178,2]
[367649345,1750887047921,-889.77,0.00019178,2]
[367649348,1750887047930,-875.32,0.00019178,2]
[367649350,1750887047942,-460.0,0.00019178,2]
[367649351,1750887047951,-528.44,0.00019178,2]
[367649354,1750887047961,-460.0,0.00019178,2]
[367649355,1750887047970,-460.0,0.00019178,2]
[367649357,1750887047980,-958.18,0.00019178,2]
[367649360,1750887047989,-460.0,0.00019178,2]
[367649362,1750887047999,-679.46,0.00019178,2]
[367649364,1750887048008,-1219.36,0.00019178,2]
[367649366,1750887048017,-1180.9,0.00019178,2]
[367649367,1750887048026,-1237.6,0.00019178,2]
[367649369,1750887048036,-460.0,0.00019178,2]
[367649371,1750887048045,-460.0,0.00019178,2]
[367649373,1750887048055,-460.0,0.00019178,2]
[367649375,1750887048064,-561.12,0.00019178,2]
[367649378,1750887048073,-1694.28,0.00019178,2]
[367649380,1750887048083,-462.61,0.00019178,2]
[367649382,1750887048092,-460.0,0.00019178,2]
[367649384,1750887048102,-460.0,0.00019178,2]
[367649385,1750887048111,-486.06,0.00019178,2]
[367649387,1750887048121,-460.0,0.00019178,2]
[367649390,1750887048131,-460.0,0.00019178,2]
[367649392,1750887048141,-1329.91,0.00019178,2]
[367649393,1750887048150,-759.06,0.00019178,2]
[367649395,1750887048160,-604.22,0.00019178,2]
[367649397,1750887048169,-187.829674,0.00019178,2]
[367649400,1750887048178,-310.940257,0.00019178,2]
[367649401,1750887048188,-190.0,0.00019189,2]
[367649403,1750887048197,-214.96199244,0.00019205,2]
[367649405,1750887048207,-250.0,0.0001923,2]
[367649407,1750887048216,-432.7968027,0.00019336,2]
[367649409,1750887048226,-2267.31046154,0.00019383,2]
[367649411,1750887048235,-36664.09008058,0.000194,2]
[367649413,1750887048244,-190.0,0.0001943,2]
[367649415,1750887048254,-919.59,0.00019451,2]
[367649417,1750887048263,-592.19,0.00019451,2]
[367649419,1750887048273,-460.0,0.00019452,2]
[367649421,1750887048282,-460.0,0.00019452,2]
[367649423,1750887048292,-460.0,0.00019452,2]
[367649425,1750887048301,-460.0,0.00019452,2]
[367649427,1750887048310,-460.0,0.00019452,2]
[367649429,1750887048320,-281.60623582,0.00019452,2]
[367649433,1750887048472,-1135.66376418,0.00019452,2]
[367649434,1750887048481,-17.23763158,0.00019452,2]
[367649435,1750887048493,-1993.89236842,0.00019452,2]
[367649436,1750887048502,-460.0,0.00019452,2]
[367649437,1750887048511,-460.0,0.00019452,2]
[367649438,1750887048521,-502.56,0.00019452,2]
[367649440,1750887048531,-1907.42,0.00019452,2]
[367649441,1750887048540,-460.0,0.00019452,2]
[367649443,1750887048550,-460.0,0.00019452,2]
[367649445,1750887048559,-460.0,0.00019452,2]
[367649447,1750887048569,-3397.07,0.00019452,2]
[367649449,1750887048578,-2780.5,0.00019452,2]
[367649451,1750887048587,-1826.13,0.00019452,2]
[367649453,1750887048597,-460.0,0.00019452,2]
[367649455,1750887048606,-2367.07,0.00019452,2]
[367649457,1750887048615,-460.0,0.00019452,2]
[367649459,1750887048625,-503.93,0.00019452,2]
[367649461,1750887048634,-460.0,0.00019452,2]
[367649463,1750887048643,-664.28,0.00019452,2]
[367649465,1750887048652,-460.0,0.00019452,2]
[367649467,1750887048662,-889.77,0.00019452,2]
[367649469,1750887048671,-875.32,0.00019452,2]
[367649471,1750887048681,-460.0,0.00019452,2]
[367649473,1750887048691,-460.0,0.00019452,2]
[367649475,1750887048700,-460.0,0.00019452,2]
[367649477,1750887048710,-958.18,0.00019452,2]
[367649479,1750887048720,-460.0,0.00019452,2]
[367649481,1750887048729,-679.46,0.00019452,2]
[367649483,1750887048739,-1219.36,0.00019452,2]
[367649485,1750887048748,-1180.9,0.00019452,2]
[367649487,1750887048757,-1237.6,0.00019452,2]
[367649489,1750887048770,-460.0,0.00019452,2]
[367649491,1750887048779,-460.0,0.00019452,2]
[367649493,1750887048789,-561.12,0.00019452,2]
[367649495,1750887048798,-1694.28,0.00019452,2]
[367649497,1750887048808,-462.61,0.00019452,2]
[367649499,1750887048817,-460.0,0.00019452,2]
[367649501,1750887048827,-460.0,0.00019452,2]
[367649503,1750887048837,-486.06,0.00019452,2]
[367649505,1750887048855,-460.0,0.00019452,2]
[367649507,1750887048869,-1329.91,0.00019452,2]
[367649509,1750887048879,-759.06,0.00019452,2]
[367649511,1750887048888,-604.22,0.00019452,2]
[367649513,1750887048897,-4384.79921513,0.00019472,2]
[367649515,1750887048909,-615.20078487,0.00019472,2]
[367649517,1750887048918,-190.0,0.00019474,2]
[367649519,1750887048927,-190.0,0.00019485,2]
[367649521,1750887048938,-151.0,0.00019494,2]
[367649523,1750887048947,-151.0,0.00019494,2]
[367649525,1750887048956,-151.0,0.00019494,2]
[367649527,1750887048966,-151.0,0.00019494,2]
[367649529,1750887048975,-265.892581,0.00019494,2]
[367649531,1750887048984,-500.194,0.00019494,2]
[367649533,1750887048993,-1092.63393613,0.00019494,2]
[367649535,1750887049005,-1107.36606387,0.00019494,2]
[367649537,1750887049014,-2000.0,0.000195,2]
[367649539,1750887049023,-981.88164141,0.000195,2]
[367649542,1750887049035,-9125.760368,0.000195,2]
[367649544,1750887049044,-177.3437282,0.00019534,2]
[367649545,1750887049053,-177.4156324,0.00019534,2]
[367649547,1750887049062,-574.9477627,0.00019534,2]
[367649549,1750887049071,-177.4156324,0.00019534,2]
[367649552,1750887049081,-177.4156324,0.00019534,2]
[367649553,1750887049090,-354.6004972,0.00019534,2]
[367649555,1750887049100,-574.9477627,0.00019534,2]
[367649557,1750887049109,-177.3826656,0.00019534,2]
[367649559,1750887049118,-574.9477627,0.00019534,2]
[367649561,1750887049127,-574.9477627,0.00019534,2]
[367649563,1750887049136,-574.9477627,0.00019534,2]
[367649565,1750887049146,-12326.8894884,0.00019557,4]
[367649568,1750887049155,-226.945,0.000196,2]
[367649570,1750887049165,-1000.0,0.000196,2]
[367649572,1750887049174,-3981.09,0.000196,2]
[367649573,1750887049184,-587.0,0.00019631,2]
[367649575,1750887049193,-800.0,0.00019658,2]
[367649577,1750887049203,-2267.31046154,0.00019659,2]
[367649579,1750887049212,-190.0,0.00019685,2]
[367649581,1750887049221,-190.0,0.0001969,2]
[367649583,1750887049231,-168.0,0.00019691,2]
[367649585,1750887049240,-151.0,0.000197,2]
[367649587,1750887049249,-800.0,0.00019707,2]
[367649589,1750887049259,-919.59,0.00019725,2]
[367649591,1750887049268,-592.19,0.00019725,2]
[367649593,1750887049277,-460.0,0.00019726,2]
[367649595,1750887049286,-460.0,0.00019726,2]
[367649597,1750887049295,-460.0,0.00019726,2]
[367649599,1750887049304,-460.0,0.00019726,2]
[367649601,1750887049314,-1417.27,0.00019726,2]
[367649603,1750887049323,-2011.13,0.00019726,2]
[367649605,1750887049332,-460.0,0.00019726,2]
[367649607,1750887049341,-460.0,0.00019726,2]
[367649609,1750887049351,-502.56,0.00019726,2]
[367649611,1750887049360,-1907.42,0.00019726,2]
[367649613,1750887049369,-460.0,0.00019726,2]
[367649615,1750887049378,-460.0,0.00019726,2]
[367649617,1750887049387,-460.0,0.00019726,2]
[367649619,1750887049396,-3397.07,0.00019726,2]
[367649621,1750887049406,-2780.5,0.00019726,2]
[367649623,1750887049415,-1826.13,0.00019726,2]
[367649625,1750887049424,-151.0,0.00019726,2]
[367649627,1750887049433,-460.0,0.00019726,2]
[367649629,1750887049445,-2367.07,0.00019726,2]
[367649631,1750887049454,-460.0,0.00019726,2]
[367649633,1750887049463,-503.93,0.00019726,2]
[367649635,1750887049473,-460.0,0.00019726,2]
[367649637,1750887049482,-664.28,0.00019726,2]
[367649639,1750887049492,-151.0,0.00019726,2]
[367649641,1750887049502,-460.0,0.00019726,2]
[367649643,1750887049511,-889.77,0.00019726,2]
[367649645,1750887049520,-151.0,0.00019726,2]
[367649647,1750887049530,-875.32,0.00019726,2]
[367649649,1750887049540,-460.0,0.00019726,2]
[367649652,1750887049550,-460.0,0.00019726,2]
[367649653,1750887049559,-460.0,0.00019726,2]
[367649655,1750887049568,-958.18,0.00019726,2]
[367649657,1750887049578,-460.0,0.00019726,2]
[367649659,1750887049587,-679.46,0.00019726,2]
[367649661,1750887049597,-1219.36,0.00019726,2]
[367649663,1750887049606,-1180.9,0.00019726,2]
[367649665,1750887049615,-1237.6,0.00019726,2]
[367649667,1750887049625,-460.0,0.00019726,2]
[367649669,1750887049634,-460.0,0.00019726,2]
[367649672,1750887049645,-561.12,0.00019726,2]
[367649674,1750887049654,-1694.28,0.00019726,2]
[367649675,1750887049664,-462.61,0.00019726,2]
[367649677,1750887049674,-460.0,0.00019726,2]
[367649680,1750887049686,-460.0,0.00019726,2]
[367649682,1750887049696,-486.06,0.00019726,2]
[367649684,1750887049706,-460.0,0.00019726,2]
[367649686,1750887049714,-1329.91,0.00019726,2]
[367649688,1750887049724,-759.06,0.00019726,2]
[367649690,1750887049733,-604.22,0.00019726,2]
[367649692,1750887049742,-800.0,0.00019731,2]
[367649694,1750887049751,-500.0,0.00019735,2]
[367649696,1750887049761,-500.0,0.00019735,2]
[367649697,1750887049775,-500.0,0.00019735,2]
[367649699,1750887049784,-500.0,0.00019735,2]
[367649701,1750887049793,-190.0,0.00019741,2]
[367649703,1750887049803,-800.0,0.00019742,2]
[367649705,1750887049813,-1411.806621,0.00019744,2]
[367649707,1750887049822,-151.0,0.00019768,2]
[367649709,1750887049831,-151.0,0.00019768,2]
[367649711,1750887049841,-151.0,0.00019768,2]
[367649713,1750887049850,-500.0,0.00019768,2]
[367649715,1750887049860,-500.0,0.00019768,2]
[367649717,1750887049870,-1000.0,0.00019771,5]
[367649719,1750887049879,-800.0,0.00019773,2]
[367649721,1750887049888,-616.20945292,0.00019777,2]
[367649723,1750887049897,-500.0,0.00019777,2]
[367649725,1750887049906,-422.95873471,0.00019777,2]
[367649727,1750887049915,-500.0,0.00019777,2]
[367649729,1750887049925,-500.0,0.00019777,2]
[367649731,1750887049934,-500.0,0.00019777,2]
[367649733,1750887049944,-500.0,0.00019777,2]
[367649735,1750887049953,-200.77792698,0.00019777,2]
[367649737,1750887049963,-500.0,0.00019777,2]
[367649739,1750887049972,-520.84279032,0.00019777,2]
[367649756,1750887050122,-500.0,0.00019777,2]
[367649758,1750887050132,-543.15943517,0.00019777,2]
[367649760,1750887050141,-600.0,0.00019777,2]
[367649762,1750887050151,-500.0,0.00019777,2]
[367649764,1750887050160,-500.0,0.00019777,2]
[367649766,1750887050169,-500.0,0.00019777,2]
[367649768,1750887050179,-500.0,0.00019777,2]
[367649770,1750887050188,-500.0,0.00019777,2]
[367649772,1750887050198,-500.0,0.00019777,2]
[367649773,1750887050208,-500.0,0.00019777,2]
[367649775,1750887050219,-414.29187925,0.00019777,2]
[367649801,1750887050458,-574.9477627,0.00018008,2]
[367649803,1750887050468,-858.57,0.00019178,2]
[367649805,1750887050477,-500.0,0.00019205,2]
[367649807,1750887050487,-500.0,0.00019232,2]
[367649809,1750887050496,-500.0,0.0001926,2]
[367649811,1750887050505,-589.57682784,0.00019287,2]
[367649813,1750887050514,-53.5365106,0.00019452,2]
[367649815,1750887050527,-805.0334894,0.00019452,2]
[367649817,1750887050536,-266.869812,0.00019494,2]
[367649819,1750887050545,-106.22797162,0.00019726,2]
[367649821,1750887050556,-752.34202838,0.00019726,2]
[367649823,1750887050566,-85.70812075,0.00019777,2]
[367649825,1750887050575,-500.0,0.00019777,2]
[367649827,1750887050585,-500.0,0.00019777,2]
[367649829,1750887050594,-500.0,0.00019777,2]
[367649831,1750887050604,-172.16106661,0.00019777,2]
[367649833,1750887050614,-500.0,0.00019777,2]
[367649835,1750887050625,-500.0,0.00019777,2]
[367649837,1750887050635,-500.0,0.00019777,2]
[367649839,1750887050644,-500.0,0.00019777,2]
[367649841,1750887050653,-634.30227546,0.00019777,2]
[367649843,1750887050662,-500.0,0.00019777,2]
[367649845,1750887050671,-500.0,0.00019777,2]
[367649847,1750887050681,-500.0,0.00019777,2]
[367649849,1750887050690,-500.0,0.00019777,2]
[367649851,1750887050700,-500.0,0.00019777,2]
[367649853,1750887050709,-500.0,0.00019777,2]
[367649855,1750887050718,-500.0,0.00019777,2]
[367649857,1750887050728,-500.0,0.00019777,2]
[367649859,1750887050738,-800.0,0.0001978,2]
[367649861,1750887050747,-800.0,0.00019783,2]
[367649863,1750887050756,-800.0,0.0001979,2]
[367649865,1750887050766,-168.0,0.00019792,2]
[367649867,1750887050780,-500.0,0.000198,2]
[367649869,1750887050789,-500.0,0.000198,2]
[367649871,1750887050800,-500.0,0.000198,2]
[367649873,1750887050810,-500.0,0.000198,2]
[367649875,1750887050821,-500.0,0.000198,2]
[367649877,1750887050830,-190.0,0.00019822,2]
[367649879,1750887050840,-800.0,0.00019853,2]
[367649881,1750887050850,-800.0,0.00019855,2]
[367649883,1750887050859,-800.0,0.00019873,2]
[367649885,1750887050868,-800.0,0.00019878,2]
[367649887,1750887050877,-381.93917159,0.00019889,2]
[367649889,1750887050886,-800.0,0.00019911,2]
[367649891,1750887050895,-800.0,0.00019913,2]
[367649893,1750887050904,-800.0,0.00019917,2]
[367649894,1750887050913,-800.0,0.00019933,2]
[367649895,1750887050922,-151.0,0.00019934,3]
[367649896,1750887050932,-2267.31046154,0.00019934,2]
[367649897,1750887050941,-800.0,0.00019938,2]
[367649898,1750887050950,-500.0,0.00019956,2]
[367649899,1750887050959,-500.0,0.00019956,2]
[367649900,1750887050968,-958.0,0.00019963,2]
[367649902,1750887050977,-800.0,0.00019972,2]
[367649904,1750887050987,-800.0,0.00019985,2]
[367649906,1750887050997,-151.0,0.00019989,2]
[367649908,1750887051006,-155.313187,0.00019989,2]
[367649910,1750887051015,-151.0,0.00019989,2]
[367649912,1750887051025,-151.0,0.00019989,2]
[367649914,1750887051034,-151.0,0.00019989,2]
[367649916,1750887051045,-151.0,0.00019989,2]
[367649918,1750887051055,-151.0,0.00019989,2]
[367649920,1750887051065,-151.0,0.00019989,2]
[367649922,1750887051073,-151.0,0.00019989,2]
[367649924,1750887051083,-151.0,0.00019989,2]
[367649926,1750887051092,-151.0,0.00019989,2]
[367649928,1750887051101,-151.0,0.00019989,2]
[367649930,1750887051110,-79723.10875357,0.00019989,4]
[367649932,1750887051121,-44130.61272493,0.00019989,4]
[367649934,1750887051130,-151.0,0.00019991,2]
[367649936,1750887051141,-151.0,0.00019991,2]
[367649938,1750887051150,-151.0,0.00019991,2]
[367649940,1750887051159,-151.0,0.00019991,2]
[367649942,1750887051168,-151.0,0.00019991,2]
[367649944,1750887051176,-12500.0,0.00019991,2]
[367649946,1750887051185,-151.0,0.00019999,2]
[367649948,1750887051194,-151.0,0.00019999,2]
[367649950,1750887051203,-153.504504,0.00019999,2]
[367649952,1750887051213,-151.0,0.00019999,2]
[367649954,1750887051223,-151.0,0.00019999,2]
[367649956,1750887051232,-151.0,0.00019999,2]
[367649958,1750887051241,-157.989329,0.00019999,2]
[367649960,1750887051250,-153.690437,0.00019999,2]
[367649962,1750887051259,-919.59,0.00019999,2]
[367649964,1750887051268,-279.317452,0.00019999,2]
[367649966,1750887051277,-279.317452,0.00019999,2]
[367649968,1750887051286,-592.19,0.00019999,2]
[367649970,1750887051295,-12500.0,0.0002,2]
[367649972,1750887051304,-151.0,0.0002,2]
[367649974,1750887051313,-151.0,0.0002,2]
[367649976,1750887051322,-151.0,0.0002,2]
[367649978,1750887051331,-3883.13150173,0.0002,2]
[367649980,1750887051341,-151.0,0.0002,2]
[367649982,1750887051350,-151.0,0.0002,2]
[367649984,1750887051359,-158.6,0.0002,2]
[367649986,1750887051368,-460.0,0.0002,2]
[367649988,1750887051377,-460.0,0.0002,2]
[367649991,1750887051396,-151.0,0.0002,2]
[367649994,1750887051407,-218.505016,0.0002,2]
[367649996,1750887051418,-300.0,0.0002,2]
[367649998,1750887051428,-313.505567,0.0002,2]
[367650000,1750887051438,-313.505567,0.0002,2]
[367650002,1750887051447,-183.213288,0.0002,2]
[367650004,1750887051457,-183.213288,0.0002,2]
[367650006,1750887051466,-460.0,0.0002,2]
[367650008,1750887051475,-460.0,0.0002,2]
[367650010,1750887051485,-1417.27,0.0002,2]
[367650012,1750887051495,-2011.13,0.0002,2]
[367650014,1750887051506,-386.29564009,0.0002,2]
[367650016,1750887051515,-460.0,0.0002,2]
[367650018,1750887051525,-502.56,0.0002,2]
[367650020,1750887051535,-1907.42,0.0002,2]
[367650022,1750887051545,-306.0,0.0002,2]
[367650024,1750887051555,-460.0,0.0002,2]
[367650026,1750887051564,-460.0,0.0002,2]
[367650028,1750887051574,-460.0,0.0002,2]
[367650030,1750887051583,-151.0,0.0002,2]
[367650032,1750887051593,-151.0,0.0002,2]
[367650034,1750887051603,-3397.07,0.0002,2]
[367650036,1750887051613,-2780.5,0.0002,2]
[367650038,1750887051622,-1826.13,0.0002,2]
[367650040,1750887051632,-460.0,0.0002,2]
[367650042,1750887051641,-177.4156324,0.0002,2]
[367650044,1750887051651,-2367.07,0.0002,2]
[367650046,1750887051661,-460.0,0.0002,2]
[367650048,1750887051670,-503.93,0.0002,2]
[367650050,1750887051679,-460.0,0.0002,2]
[367650052,1750887051690,-664.28,0.0002,2]
[367650055,1750887051700,-460.0,0.0002,2]
[367650057,1750887051709,-889.77,0.0002,2]
[367650059,1750887051719,-875.32,0.0002,2]
[367650061,1750887051729,-460.0,0.0002,2]
[367650063,1750887051739,-177.4156324,0.0002,2]
[367650065,1750887051749,-531.18604415,0.0002,2]
[367650067,1750887051758,-460.0,0.0002,2]
[367650069,1750887051771,-958.18,0.0002,2]
[367650071,1750887051781,-460.0,0.0002,2]
[367650073,1750887051791,-679.46,0.0002,2]
[367650075,1750887051800,-1180.9,0.0002,2]
[367650077,1750887051810,-177.4156324,0.0002,2]
[367650079,1750887051819,-1237.6,0.0002,2]
[367650081,1750887051829,-460.0,0.0002,2]
[367650083,1750887051839,-460.0,0.0002,2]
[367650085,1750887051849,-561.12,0.0002,2]
[367650087,1750887051859,-1694.28,0.0002,2]
[367650089,1750887051869,-462.61,0.0002,2]
[367650091,1750887051879,-177.4156324,0.0002,2]
[367650094,1750887051888,-460.0,0.0002,2]
[367650095,1750887051898,-460.0,0.0002,2]
[367650097,1750887051907,-486.06,0.0002,2]
[367650100,1750887051917,-4000.0,0.0002,4]
[367650102,1750887051926,-177.4156324,0.0002,2]
[367650104,1750887051938,-460.0,0.0002,2]
[367650106,1750887051948,-1329.91,0.0002,2]
[367650108,1750887051958,-759.06,0.0002,2]
[367650110,1750887051967,-604.22,0.0002,2]
[367650112,1750887051977,-858.57,0.0002,2]
[367650114,1750887051986,-29983.84612837,0.00020009,2]
[367650116,1750887051996,-151.0,0.00020009,2]
[367650118,1750887052005,-151.0,0.00020009,2]
[367650120,1750887052015,-215.0738,0.00020014,2]
[367650122,1750887052024,-568.74958482,0.00020019,2]
[367650124,1750887052035,-3000.0,0.000201,2]
[367650126,1750887052044,-2000.0,0.000201,2]
[367650128,1750887052054,-151.0,0.000201,2]
[367650130,1750887052063,-3000.0,0.0002011,2]
[367650132,1750887052074,-3000.0,0.0002012,2]
[367650134,1750887052083,-195.87991591,0.00020124,2]
[367650136,1750887052093,-3000.0,0.0002013,2]
[367650138,1750887052103,-3000.0,0.0002014,2]
[367650140,1750887052112,-23708.7810267,0.0002014,2]
[367650142,1750887052122,-151.0,0.0002014,2]
[367650144,1750887052131,-152.726394,0.0002014,2]
[367650146,1750887052141,-1977.02272312,0.00020147,2]
[367650148,1750887052150,-206.0,0.00020147,2]
[367650150,1750887052159,-206.0,0.00020147,2]
[367650152,1750887052169,-206.0,0.00020147,2]
[367650154,1750887052178,-206.0,0.00020147,2]
[367650157,1750887052188,-206.0,0.00020147,2]
[367650159,1750887052197,-206.0,0.00020147,2]
[367650161,1750887052206,-206.0,0.00020147,2]
[367650162,1750887052215,-206.0,0.00020147,2]
[367650164,1750887052225,-206.0,0.00020147,2]
[367650167,1750887052234,-206.0,0.00020147,2]
[367650169,1750887052245,-206.0,0.00020147,2]
[367650171,1750887052254,-206.0,0.00020147,2]
[367650173,1750887052263,-620.98828903,0.00020147,2]
[367650175,1750887052272,-151.0,0.00020147,3]
[367650177,1750887052281,-3000.0,0.0002015,2]
[367650179,1750887052291,-3000.0,0.0002016,2]
[367650181,1750887052300,-151.0,0.0002016,2]
[367650183,1750887052309,-185.0,0.00020162,2]
[367650185,1750887052319,-3000.0,0.0002017,2]
[367650187,1750887052328,-151.0,0.00020176,2]
[367650189,1750887052337,-12500.0,0.00020176,2]
[367650191,1750887052346,-3000.0,0.0002018,2]
[367650193,1750887052356,-151.0,0.0002018,2]
[367650195,1750887052365,-151.0,0.0002018,2]
[367650197,1750887052374,-151.0,0.0002018,2]
[367650199,1750887052383,-151.0,0.0002018,2]
[367650201,1750887052392,-151.0,0.0002018,2]
[367650203,1750887052402,-151.0,0.0002018,2]
[367650205,1750887052411,-151.0,0.0002018,2]
[367650207,1750887052421,-151.0,0.0002018,2]
[367650209,1750887052430,-151.0,0.0002018,2]
[367650211,1750887052439,-151.0,0.0002018,2]
[367650213,1750887052448,-151.0,0.0002018,2]
[367650215,1750887052458,-151.0,0.0002018,2]
[367650217,1750887052468,-151.0,0.0002018,2]
[367650219,1750887052477,-1238.395085,0.0002018,2]
[367650221,1750887052486,-1238.395085,0.0002018,2]
[367650223,1750887052495,-183.179544,0.0002018,2]
[367650225,1750887052505,-183.179544,0.0002018,2]
[367650227,1750887052515,-151.0,0.0002018,2]
[367650229,1750887052524,-171.972013,0.0002018,2]
[367650231,1750887052533,-171.972013,0.0002018,2]
[367650233,1750887052543,-12500.0,0.00020185,2]
[367650235,1750887052552,-734.271647,0.00020187,2]
[367650237,1750887052561,-3000.0,0.0002019,2]
[367650239,1750887052571,-12500.0,0.00020194,2]
[367650241,1750887052580,-151.0,0.00020194,2]
[367650243,1750887052590,-151.0,0.00020194,2]
[367650245,1750887052600,-151.0,0.00020194,2]
[367650247,1750887052609,-151.0,0.00020194,2]
[367650249,1750887052618,-151.0,0.00020194,2]
[367650251,1750887052627,-151.0,0.00020194,2]
[367650253,1750887052637,-151.0,0.00020194,2]
[367650255,1750887052646,-151.0,0.00020194,2]
[367650257,1750887052655,-151.0,0.00020194,2]
[367650259,1750887052664,-206.258793,0.00020194,2]
[367650261,1750887052674,-151.0,0.00020194,2]
[367650263,1750887052683,-151.0,0.00020194,2]
[367650265,1750887052693,-151.0,0.00020194,2]
[367650267,1750887052702,-3000.0,0.000202,2]
[367650269,1750887052712,-640.0,0.000202,2]
[367650271,1750887052721,-12500.0,0.00020203,2]
[367650273,1750887052730,-206.0,0.0002021,2]
[367650276,1750887052740,-3000.0,0.0002021,2]
[367650278,1750887052750,-2267.31046154,0.0002021,2]
[367650280,1750887052759,-12500.0,0.00020211,2]
[367650282,1750887052772,-151.0,0.00020212,2]
[367650284,1750887052782,-151.0,0.00020212,2]
[367650286,1750887052791,-151.0,0.00020212,2]
[367650288,1750887052801,-151.0,0.00020212,2]
[367650290,1750887052812,-279.317452,0.00020212,2]
[367650292,1750887052821,-279.317452,0.00020212,2]
[367650294,1750887052831,-3000.0,0.0002022,2]
[367650296,1750887052841,-12500.0,0.0002022,2]
[367650298,1750887052851,-151.0,0.00020229,2]
[367650300,1750887052860,-151.0,0.00020229,2]
[367650302,1750887052869,-313.505567,0.00020229,2]
[367650304,1750887052879,-313.505567,0.00020229,2]
[367650306,1750887052888,-183.213288,0.00020229,2]
[367650308,1750887052898,-183.213288,0.00020229,2]
[367650310,1750887052907,-12500.0,0.00020229,2]
[367650312,1750887052916,-5983.332373,0.0002023,2]
[367650314,1750887052926,-12500.0,0.00020238,2]
[367650316,1750887052936,-151.0,0.00020238,2]
[367650318,1750887052946,-151.0,0.00020238,2]
[367650320,1750887052955,-151.0,0.00020238,2]
[367650322,1750887052965,-12500.0,0.00020247,2]
[367650324,1750887052974,-152.176377,0.00020255,2]
[367650326,1750887052983,-151.0,0.00020255,2]
[367650328,1750887052992,-151.0,0.00020255,2]